{"text_format":"1","workbook":"xlsx","n_sheets":10,"sheets":["Introduction","Understanding your needs","Preparation Option 1","Preparation Option 2","Preparation Option 3","Preparation Option 4","Extracurricular Activities","Engineering Course Load","Engineering Curriculum 4-Year","Engineering Curriculum 5-Year"],"not_rendered":{"charts":0,"images":0,"macros":1,"external_links":0,"defined_names":2,"comments":0,"pivot_tables":0},"unopened":[],"bounds":{"document_bytes":16777216,"sheet_cells":100000,"rows_first":2000,"rows_last":500,"rows_between":2000,"halvings":0,"cell_chars":16384,"cell_head_chars":4096},"cells_cut":0,"cells_raw":0,"read":"whole","date_system":"1900"}

{"sheet":"Introduction","index":0,"n_rows":38,"n_cols":3,"rows_kept":38,"cut":false,"hidden":false,"merged":[[12,1,18,11],[20,1,22,11],[24,1,26,11],[4,1,5,11],[8,1,9,11]]}
[]
[null,"Milligan Engineering In-coming Student Questionnaire "]
[]
[null,"Important note:"]
[null,"In order for this Questionnaire to function properly, you have to enable Macros in the Excel Program. To do this, please follow these steps in Excel: "]
[]
[null,"1. Click the File tab. "]
[null,"2. In the Security Warning area, click Enable Content. "]
[null,"3. Under Enable All Content, click Always enable this document's active content. The file becomes a trusted document. "]
[]
[]
[null,"Introduction "]
[null,"Engineering is a demanding discipline. It requires dedicated focus, significant effort, and good management of your resources. National statistics show that at the undergraduate level about half of the engineering graduates in the United States graduate in five (5) years, while the other half graduate in four (4) years. There are many factors that come into play in making a 4-year or 5-year decision—things like, financial situation, time availability, playing collegiate sports, and the pursuit of multiple degrees. "]
[]
[]
[]
[]
[]
[]
[]
[null,"We strongly recommend completing this questionnaire with your family and/or mentors, as these decisions will influence your course load, financial situation, and time required to complete your degree. "]
[]
[]
[]
[null,"We would like to provide the support that meets your needs. Please contact Milligan Engineering if you have any questions or would like to have further discussions. "]
[]
[]
[]
[null,"After you complete the Questionnaire, please send the finished questionnaire back to Milligan Engineering. "]
[]
[null,"Contact: "]
[null,null,"Director of Milligan Engineering Programs "]
[null,null,"Dr. Greg Harrell "]
[null,null,"GSHarrell@milligan.edu"]
[]
[null,null,"Engineering Program Associate "]
[null,null,"Hongyou Lu "]
[null,null,"hlu@milligan.edu"]

{"sheet":"Understanding your needs","index":1,"n_rows":53,"n_cols":30,"rows_kept":53,"cut":false,"hidden":false,"merged":[[50,9,50,12],[43,6,43,7],[22,12,22,13],[28,12,28,13],[18,9,18,10],[20,9,20,10],[45,6,45,7],[47,6,47,7],[24,12,24,13],[26,12,26,13],[37,6,37,7],[39,6,39,7],[41,6,41,7],[32,6,32,7],[33,6,33,7],[24,9,24,10],[14,12,14,13],[16,12,16,13],[18,12,18,13],[20,12,20,13],[3,1,5,14],[9,1,10,14],[11,1,12,14],[14,2,14,8],[14,9,14,10],[15,9,15,13],[26,9,26,10],[28,9,28,10],[35,6,35,7],[22,9,22,10],[16,9,16,10]]}
[]
[null,"Milligan Engineering Questionnaire "]
[]
[null,"Please enter your information below. When you finish, please click on the button \"See our recommended options\" to see suggested actions. "]
[]
[]
[null,"1. What's your name? "]
[]
[null,"2. Where do you live? "]
[null,"Note: we would like to know whether you are local or not? Where would you likely to be in the summer? "]
[]
[null,"3. Which of the following Math courses have you taken? Please check all that apply. Please also indicate your grade and/or score. "]
[]
[]
[null,null,"Course Name ",null,null,null,null,null,null,"Letter Grade",null,null,"AP Test Score ",null,null,null,null,null,null,null,null,null,null,null,null,null,null,null,"A",1]
[null,null,null,null,null,null,null,null,null,"(Select from the drop down)",null,null,null,null,null,null,null,null,null,null,null,null,null,null,null,null,null,null,"A-",2]
[null,null,null,null,null,null,null,null,null,null,null,null,null,null,null,null,null,null,null,null,null,null,null,null,null,null,null,null,"B+",3]
[null,null,null,null,null,null,null,null,null,null,null,null,null,null,null,null,null,null,null,null,null,null,null,null,null,null,null,null,"B",4]
[null,null,null,null,null,null,null,null,null,null,null,null,null,null,null,null,null,null,null,null,null,null,null,null,null,null,null,null,"B-",5]
[null,null,null,null,null,null,null,null,null,null,null,null,null,null,null,null,null,null,null,null,null,null,null,null,null,null,null,null,"C+"]
[null,null,null,null,null,null,null,null,null,null,null,null,null,null,null,null,null,null,null,null,null,null,null,null,null,null,null,null,"C"]
[null,null,null,null,null,null,null,null,null,null,null,null,null,null,null,null,null,null,null,null,null,null,null,null,null,null,null,null,"C-"]
[null,null,null,null,null,null,null,null,null,null,null,null,null,null,null,null,null,null,null,null,null,null,null,null,null,null,null,null,"D+"]
[null,null,null,null,null,null,null,null,null,null,null,null,null,null,null,null,null,null,null,null,null,null,null,null,null,null,null,null,"D"]
[null,null,null,null,null,null,null,null,null,null,null,null,null,null,null,null,null,null,null,null,null,null,null,null,null,null,null,null,"D-"]
[null,null,null,null,null,null,null,null,null,null,null,null,null,null,null,null,null,null,null,null,null,null,null,null,null,null,null,null,"F"]
[]
[]
[]
[]
[null,"4. What's your ACT Score? "]
[]
[null,null,null,null,null,null,"Score "]
[null,null,null,"Math "]
[]
[null,null,null,"Science "]
[]
[null,null,null,"English "]
[]
[null,null,null,"Reading"]
[]
[null,null,null,"Writing"]
[]
[null,null,null,"STEM"]
[]
[null,null,null,"Composite "]
[]
[null,null,null,"Alternatively, SAT Score"]
[]
[null,null,null,null,null,null,null,null,null,"(Select from the drop down)"]
[null,"5. Which of the Engineering Majors are you mostly interested in? ",null,null,null,null,null,null,null,null,null,null,null,null,null,null,null,null,null,null,null,null,null,null,null,null,null,null,"Mechanical Engineering"]
[null,null,null,null,null,null,null,null,null,null,null,null,null,null,null,null,null,null,null,null,null,null,null,null,null,null,null,null,"Electrical Engineering"]
[null,null,null,null,null,null,null,null,null,null,null,null,null,null,null,null,null,null,null,null,null,null,null,null,null,null,null,null,"Undecided "]

{"sheet":"Preparation Option 1","index":2,"n_rows":7,"n_cols":2,"rows_kept":7,"cut":false,"hidden":false,"merged":[[4,1,4,11],[6,1,9,11]]}
[]
[null,"Milligan Engineering Questionnaire "]
[]
[]
[null,"Welcome to Milligan Engineering! "]
[]
[null,"You do not have to take Milligan's Calculus pre-test during the welcome week. \nYou are admitted to Milligan's Calculus 1 (MATH 211) directly. \n"]

{"sheet":"Preparation Option 2","index":3,"n_rows":7,"n_cols":2,"rows_kept":7,"cut":false,"hidden":false,"merged":[[4,1,4,11],[6,1,11,11]]}
[]
[null,"Milligan Engineering Questionnaire "]
[]
[]
[null,"Welcome to Milligan Engineering! "]
[]
[null,"You do not have to take Milligan's Calculus pre-test during the welcome week. You are admitted to Milligan's Calculus 1 (MATH 211) directly. You also have the option to directly take Milligan's Calculus 2 (MATH 212) and claim the course credit of MATH 211. "]

{"sheet":"Preparation Option 3","index":4,"n_rows":13,"n_cols":2,"rows_kept":13,"cut":false,"hidden":false,"merged":[[4,1,4,11],[6,1,9,11],[12,1,24,11]]}
[]
[null,"Milligan Engineering Questionnaire "]
[]
[]
[null,"Welcome to Milligan Engineering! "]
[]
[null,"It appears that you have not had the opportunity to completely prepare for advanced-level college math. We would like to recommend that you take the Pre-Calculus Online Course from Milligan College during the summer. \n"]
[]
[]
[]
[]
[]
[null,"If you choose not to take the Pre-Calculus Online Course during the summer, your option would be to take the Calculus Pre-test the day before class starts. If you do not successfully pass the test, you will have to successfully complete Pre-Calculus (MATH 171) prior to gaining entrance to Calculus 1. \nThis will extend your schoolistic adventure because Calculus 1 is a prerequisite for all engineering courses and a co-requisite for Physics 1. \n\nPlease come by and talk with us at Milligan Engineering. "]

{"sheet":"Preparation Option 4","index":5,"n_rows":7,"n_cols":2,"rows_kept":7,"cut":false,"hidden":false,"merged":[[4,1,4,11],[6,1,11,11]]}
[]
[null,"Milligan Engineering Questionnaire "]
[]
[]
[null,"Welcome to Milligan Engineering! "]
[]
[null,"You do not have to take Milligan's Calculus pre-test during the welcome week. \nYou can claim the course credit of MATH 212. "]

{"sheet":"Extracurricular Activities","index":6,"n_rows":9,"n_cols":8,"rows_kept":9,"cut":false,"hidden":false,"merged":[[5,1,6,11],[8,2,8,4],[8,7,8,8]]}
[]
[null,"Milligan Engineering Questionnaire "]
[]
[null,"Extracurricular Activities "]
[]
[null,"What are your extracurricular activities? Please check all that apply. Please add more information on the right if necessary. "]
[]
[]
[null,null,"Extracurricular Activities ",null,null,null,null,"Notes "]

{"sheet":"Engineering Course Load","index":7,"n_rows":6,"n_cols":2,"rows_kept":6,"cut":false,"hidden":false,"merged":[[5,1,14,11]]}
[]
[null,"Milligan Engineering Questionnaire "]
[]
[null,"Engineering Course Load Suggestions "]
[]
[null,"Engineering is a demanding discipline. First semester traditional course arrangement involves college-level Calculus, Physics, and Chemistry at the same time. It is a challenging course load. \n\nTo significantly reduce your first semester workload, we suggest that you enroll General College Chemistry and/or college-level Calculus during the summer  , if you plan to graduate in four (4) years. \n\nYou will find a typical four-year and a typical five-year engineering curriculum on the next two pages. If you plan to graduate in five years, a general course arrangement follows the four year presentation. However, please contact Milligan Engineering to create a course arrangement that matches you needs best. "]

{"sheet":"Engineering Curriculum 4-Year","index":8,"n_rows":44,"n_cols":17,"rows_kept":44,"cut":false,"hidden":false,"merged":[[0,10,0,16],[1,10,1,16],[30,10,30,16],[2,10,2,11],[2,14,2,15],[12,10,12,16],[13,5,13,6],[13,1,13,2],[21,10,21,16],[13,14,13,15],[13,10,13,11],[0,1,0,7],[43,5,43,7],[43,1,43,2],[42,6,42,7],[41,6,41,7],[40,6,40,7],[31,5,31,6],[31,1,31,2],[30,1,30,7],[22,5,22,6],[1,1,1,7],[12,1,12,7],[2,5,2,6],[2,1,2,2],[22,1,22,2],[21,1,21,7],[43,10,43,11],[43,14,43,16],[22,10,22,11],[22,14,22,15],[31,10,31,11],[31,14,31,15],[42,15,42,16]]}
[null,"Mechanical Engineering Program Course Outline",null,null,null,null,null,null,null,null,"Electrical Engineering Program Course Outline"]
[null,"First Year",null,null,null,null,null,null,null,null,"First Year"]
[null,"Fall Semester ",null,null,null,"Spring Semester ",null,null,null,null,"Fall Semester ",null,null,null,"Spring Semester "]
[null,"Course ","Catalog   ","Credits ",null,"Course ","Catalog   ","Credits ",null,null,"Course ","Catalog   ","Credits ",null,"Course ","Catalog   ","Credits "]
[null,null,"Identification ",null,null,null,"Identification ",null,null,null,null,"Identification ",null,null,null,"Identification "]
[null,"Calculus 1","MATH 211",4,null,"Calculus 2","MATH 212",4,null,null,"Calculus 1","MATH 211",4,null,"Calculus 2","MATH 212",4]
[null,"General Chemistry 1","CHEM 170",4,null,"Engineering Fundamentals","FENG 102",3,null,null,"General Chemistry 1","CHEM 170",4,null,"Engineering Fundamentals","FENG 102",3]
[null,"Introduction to Engineering","FENG 101",1,null,"Rhetorical Composition","COMP 111",3,null,null,"Introduction to Engineering","FENG 101",1,null,"Rhetorical Composition","COMP 111",3]
[null,"Intro to College & Service","MLGN 100",0.5,null,"New Testament Survey","BIBL 124",3,null,null,"Intro to College & Service","MLGN 100",0.5,null,"New Testament Survey","BIBL 124",3]
[null,"Old Testament Survey","BIBL 123",3,null,"Renaissance & Early Mod Cul","HUMN 102",4,null,null,"Old Testament Survey","BIBL 123",3,null,"Renaissance & Early Mod Cul","HUMN 102",4]
[null,"Ancient & Medieval Cultures","HUMN 101",4,null,null,null,null,null,null,"Ancient & Medieval Cultures","HUMN 101",4]
[null,"Semester Credits",null,16.5,null,"Semester Credits",null,17,null,null,"Total Credits",null,16.5,null,"Total Credits",null,17]
[null,"Second Year",null,null,null,null,null,null,null,null,"Second Year"]
[null,"Fall Semester ",null,null,null,"Spring Semester ",null,null,null,null,"Fall Semester ",null,null,null,"Spring Semester "]
[null,"General Physics 1","PHYS 203",4,null,"General Physics 2","PHYS 204",4,null,null,"General Physics 1","PHYS 203",4,null,"General Physics 2","PHYS 204",4]
[null,"Multivariable Calculus ","MATH 303",4,null,"Linear Algebra","MATH 307",3,null,null,"Multivariable Calculus ","MATH 303",4,null,"Linear Algebra","MATH 307",3]
[null,"Statics ","MENG 201",3,null,"Differential Equations ","MATH 309",3,null,null,"Technical Elec or Social Elec","MENG CS CIS GER",3,null,"Differential Equations ","MATH 309",3]
[null,"Applied Elect Theory 1","EENG 201",3,null,"Dynamics ","MENG 202",3,null,null,"Applied Elect Theory 1","EENG 201",3,null,"Introduction to Digital Systems ","EENG 202",3]
[null,"Analytical Composition","COMP 211",3,null,"Mechanics of Materials","MENG 211",3,null,null,"Analytical Composition","COMP 211",3,null,"Computer Programming","EENG 221",3]
[null,null,null,null,null,"Intro to Calling & Career","MLGN 200",0.5,null,null,null,null,null,null,"Intro to Calling & Career","MLGN 200",0.5]
[null,"Semester Credits",null,17,null,"Semester Credits",null,16.5,null,null,"Total Credits",null,17,null,"Total Credits",null,16.5]
[null,"Third Year",null,null,null,null,null,null,null,null,"Third Year"]
[null,"Fall Semester ",null,null,null,"Spring Semester ",null,null,null,null,"Fall Semester ",null,null,null,"Spring Semester "]
[null,"Applied Math & Prog for Eng","FENG 301",3,null,"Materials and Design","MENG 311 ",3,null,null,"Applied Math & Prog for Eng","FENG 301",3,null,"Communication Systems","EENG 311",3]
[null,"Machine Design ","MENG 331",3,null,"Systems and Controls ","MENG 421 & EENG 461",3,null,null,"Applied Electrical Theory 2","EENG 301",3,null,"Analog Devices ","EENG 363",3]
[null,"Fluid Mechanics ","MENG 361",3,null,"Heat Transfer","MENG 351",3,null,null,"Microprocessor Applications ","EENG 362",3,null,"Systems and Controls ","MENG 421 &EENG 461",3]
[null,"Thermodynamics 1","MENG 371 ",3,null,"Thermodynamics 2","MENG 372",3,null,null,"Computer Engineering 1","EENG 321",3,null,"Power Systems ","EENG 371",3]
[null,"18th & 19th Centuries Cultures","HUMN 201",4,null,"Fitness for Life","EXSC 101",1,null,null,"18th & 19th Centuries Cultures","HUMN 201",4,null,"Fitness for Life","EXSC 101",1]
[null,null,null,null,null,"Cultures of the 20th/21st Cent","HUMN 202",4,null,null,null,null,null,null,"Cultures of the 20th/21st Cent","HUMN 202",4]
[null,"Semester Credits",null,16,null,"Semester Credits",null,17,null,null,"Total Credits",null,16,null,"Total Credits",null,17]
[null,"Fourth Year",null,null,null,null,null,null,null,null,"Fourth Year"]
[null,"Fall Semester ",null,null,null,"Spring Semester ",null,null,null,null,"Fall Semester ",null,null,null," Spring Semester "]
[null,"Vibrations and Dynamic Systems ","MENG 431",3,null,"Manufacturing Processes ","MENG 411",3,null,null,"Computer Engineering 2","EENG 322",3,null,"Electromagnetics","EENG 401",3]
[null,"Applied Thermal-Fluid Sciences","MENG 471",4,null,"Applied Machine Design","MENG 432",4,null,null,"Applied Electronics ","EENG 431",4,null,"Applied Power and Controls","EENG 471",4]
[null,"Mechanical Design Project 1","MENG 481",3,null,"Mechanical Design Project 2","MENG 482",3,null,null,"Electrical Design Project 1","EENG 481",3,null,"Electrical Design Project 2","EENG 482",3]
[null,"Speech Communication","COMM 102",3,null,"Christ and Culture","BIBL 471",3,null,null,"Technical Elec or Social Elec","MENG CS CIS GER",3,null,"Christ and Culture","BIBL 471",3]
[null,"Social Learning","GER",3,null,"Ethnic Studies","GER",3,null,null,"Speech Communication","COMM 102",3,null,"Ethnic Studies","GER",3]
[null,"Semester Credits",null,16,null,"Semester Credits",null,16,null,null,"Total Credits",null,16,null,"Total Credits",null,16]
[null,"Total Credits All Semesters",null,132,null,"Laptop Requirements","Recommended",null,null,null,"Total Credits All Semesters",null,132,null,"Laptop Requirements","Recommended"]
[null,"Total Credits Engineering ",null,60,null,"CPU","Intel Core i5 or i7",null,null,null,"Total Credits Engineering ",null,60,null,"CPU","Intel Core i5 or i7"]
[null,"Total Credits Math ",null,18,null,"Memory ","8 GB RAM (more is faster)",null,null,null,"Total Credits Math ",null,18,null,"Memory ","8 GB RAM (more is faster)"]
[null,"Total Credits Physics ",null,8,null,"Hard Drive","500 GB (more is better)",null,null,null,"Total Credits Physics ",null,8,null,"Hard Drive","500 GB (more is better)"]
[null,"Total Credits Chemistry ",null,4,null,"Operating System ","Windows 8 or higher",null,null,null,"Total Credits Chemistry ",null,4,null,"Operating System ","Windows 8 or higher"]
[null,"Total Credits General Education  ",null,42,null,"MS Office is free of charge provided through Milligan College ",null,null,null,null,"Total Credits General Education  ",null,42,null,"MS Office is free of charge provided through Milligan College "]

{"sheet":"Engineering Curriculum 5-Year","index":9,"n_rows":62,"n_cols":17,"rows_kept":62,"cut":false,"hidden":false,"merged":[[51,10,51,11],[51,14,51,16],[38,1,38,7],[1,10,1,16],[12,10,12,16],[21,10,21,16],[30,10,30,16],[38,10,38,16],[39,1,39,2],[39,5,39,6],[31,1,31,2],[31,5,31,6],[48,6,48,7],[49,6,49,7],[50,6,50,7],[51,1,51,2],[51,5,51,7],[13,1,13,2],[13,5,13,6],[21,1,21,7],[22,1,22,2],[22,5,22,6],[30,1,30,7],[12,1,12,7],[0,1,0,7],[0,10,0,16],[1,1,1,7],[2,1,2,2],[2,5,2,6]]}
[null,"Mechanical Engineering Program 5-Year Course Outline",null,null,null,null,null,null,null,null,"Electrical Engineering Program 5-Year Course Outline"]
[null,"First Year",null,null,null,null,null,null,null,null,"First Year"]
[null,"                                      Fall Semester ",null,null,null,"                                   Spring Semester ",null,null,null,null,"                                      Fall Semester ",null,null,null,"                                   Spring Semester "]
[null,"Course ","Catalog   ","Credits ",null,"Course ","Catalog   ","Credits ",null,null,"Course ","Catalog   ","Credits ",null,"Course ","Catalog   ","Credits "]
[null,null,"Identification ",null,null,null,"Identification ",null,null,null,null,"Identification ",null,null,null,"Identification "]
[null,"Calculus 1","MATH 211",4,null,"Calculus 2","MATH 212",4,null,null,"Calculus 1","MATH 211",4,null,"Calculus 2","MATH 212",4]
[null,"Introduction to Engineering ","FENG 101",1,null,"Engineering Fundamentals ","FENG 102",3,null,null,"Introduction to Engineering ","FENG 101",1,null,"Engineering Fundamentals ","FENG 102",3]
[null,"Intro to College & Service ","MLGN 100",0.5,null,"New Testament Survey","BIBL 124",3,null,null,"Intro to College & Service ","MLGN 100",0.5,null,"New Testament Survey","BIBL 124",3]
[null,"Old Testament Survey","BIBL 123",3,null,"Renaissance & Early Modern Cultures ","HUMN 102",4,null,null,"Old Testament Survey","BIBL 123",3,null,"Renaissance & Early Modern Cultures ","HUMN 102",4]
[null,"Ancient & Medieval Cultures ","HUMN 101",4,null,null,null,null,null,null,"Ancient & Medieval Cultures ","HUMN 101",4]
[]
[null,"Semester Credits",null,{"$f":"SUM(D6:D11)","v":12.5},null,"Semester Credits",null,{"$f":"SUM(H6:H11)","v":14},null,null,"Total Credits",null,{"$f":"SUM(M6:M11)","v":12.5},null,"Total Credits",null,{"$f":"SUM(Q6:Q11)","v":14}]
[null,"Second Year",null,null,null,null,null,null,null,null,"Second Year"]
[null,"                                      Fall Semester ",null,null,null,"                                   Spring Semester ",null,null,null,null,"                                      Fall Semester ",null,null,null,"                                   Spring Semester "]
[null,"Multivariable Calculus ","MATH 303",4,null,"Linear Algebra","MATH 307",3,null,null,"Multivariable Calculus ","MATH 303",4,null,"Linear Algebra","MATH 307",3]
[null,"General Physics-Calculus 1","PHYS 203",4,null,"Differential Equations ","MATH 309",3,null,null,"General Physics-Calculus 1","PHYS 203",4,null,"Differential Equations ","MATH 309",3]
[null,"General Chemistry ","CHEM 170",4,null,"General Physics-Calculus 2","PHYS 204",4,null,null,"General Chemistry ","CHEM 170",4,null,"General Physics-Calculus 2","PHYS 204",4]
[null,"Speech Communication ","COMM 102",3,null,"Rhetorical Composition ","COMP 111",3,null,null,"Speech Communication ","COMM 102",3,null,"Rhetorical Composition ","COMP 111",3]
[null,null,null,null,null,"Intro to Calling & Career","MLGN 200",0.5,null,null,null,null,null,null,"Intro to Calling & Career","MLGN 200",0.5]
[]
[null,"Semester Credits",null,{"$f":"SUM(D15:D20)","v":15},null,"Semester Credits",null,{"$f":"SUM(H15:H19)","v":13.5},null,null,"Total Credits",null,{"$f":"SUM(M15:M20)","v":15},null,"Total Credits",null,{"$f":"SUM(Q15:Q19)","v":13.5}]
[null,"Third Year",null,null,null,null,null,null,null,null,"Third Year"]
[null,"                                      Fall Semester ",null,null,null,"                                   Spring Semester ",null,null,null,null,"                                      Fall Semester ",null,null,null,"                                   Spring Semester "]
[null,"Applied Electrical Theory 1","EENG 201",3,null,"Dynamics ","MENG 202",3,null,null,"Applied Electrical Theory 1","EENG 201",3,null,"Introduction to Digital Systems ","EENG 202",3]
[null,"Statics ","MENG 201",3,null,"Mechanics of Materials","MENG 211",3,null,null,"Statics ","MENG 201",3,null,"Computer Programming","EENG 221",3]
[null,"18 & 19 Century Cultures ","HUMN 201",4,null,"Cultures of the 20 & 21 Centuries ","HUMN 202",4,null,null,"18 & 19 Century Cultures ","HUMN 201",4,null,"Cultures of the 20th/21st Cent","HUMN 202",4]
[null,"Inquiring Minds","COMP 211",3,null,"Ethnic Studies ","GER",3,null,null,"Inquiring Minds","COMP 211",3,null,"Ethnic Studies ","GER",3]
[]
[]
[null,"Semester Credits",null,{"$f":"SUM(D24:D29)","v":13},null,"Semester Credits",null,{"$f":"SUM(H24:H29)","v":13},null,null,"Total Credits",null,{"$f":"SUM(M24:M29)","v":13},null,"Total Credits",null,{"$f":"SUM(Q24:Q29)","v":13}]
[null,"Fourth Year",null,null,null,null,null,null,null,null,"Fourth Year"]
[null,"                                      Fall Semester ",null,null,null,"                                   Spring Semester ",null,null,null,null,"                                      Fall Semester ",null,null,null,"                                   Spring Semester "]
[null,"Applied Math & Progr for Engrs","FENG 301",3,null,"Thermodynamics 2","MENG 372",3,null,null,"Applied Math & Prog for Eng","FENG 301",3,null,"Communication Systems","EENG 311",3]
[null,"Machine Design ","MENG 331",3,null,"Systems and Controls ","MENG 421 & EENG 461 H",3,null,null,"Applied Electrical Theory 2","EENG 301",3,null,"Analog Devices ","EENG 363",3]
[null,"Thermodynamics 1","MENG 371",3,null,"Heat Transfer ","MENG 351",3,null,null,"Computer Engineering 1","EENG 321",3,null,"Systems and Controls ","MENG 421 &EENG 461",3]
[null,"Fluid Mechanics","MENG 361",3,null,"Materials and Design","MENG 311",3,null,null,"Microprocessor Applications ","EENG 362",3,null,"Power Systems ","EENG 371",3]
[null,null,null,null,null,"Fitness for Life ","EXSC 101",1,null,null,null,null,null,null,"Fitness for Life","HPXS 101",1]
[null,"Semester Credits",null,{"$f":"SUM(D32:D37)","v":12},null,"Semester Credits",null,{"$f":"SUM(H32:H37)","v":13},null,null,"Total Credits",null,{"$f":"SUM(M32:M37)","v":12},null,"Total Credits",null,{"$f":"SUM(Q32:Q37)","v":13}]
[null,"Fifth Year",null,null,null,null,null,null,null,null,"Fifth Year"]
[null,"                                      Fall Semester ",null,null,null,"                                   Spring Semester ",null,null,null,null,"                                      Fall Semester ",null,null,null,"                                   Spring Semester "]
[null,"Vibrations and Dynamic Systems ","MENG 431",3,null,"Manufacturing Processes ","MENG 411",3,null,null,"Computer Engineering 2","EENG 322",3,null,"Electromagnetics","EENG 401",3]
[null,"Applied Thermal-Fluid Sciences ","MENG 471",4,null,"Applied Machine Design","MENG 432",4,null,null,"Applied Electronics ","EENG 431",4,null,"Applied Power and Controls","EENG 471",4]
[null,"Mechanical Design Project 1","MENG 481",3,null,"Mechanical Design Project 2","MENG 482",3,null,null,"Electrical Design Project 1","EENG 481",3,null,"Electrical Design Project 2","EENG 482",3]
[null,"Social Learning ","GER",3,null,"Christ and Culture","BIBL 471",3,null,null,"Social Learning ","GER",3,null,"Christ and Culture","BIBL 471",3]
[]
[null,"Semester Credits",null,{"$f":"SUM(D40:D45)","v":13},null,"Semester Credits",null,{"$f":"SUM(H40:H45)","v":13},null,null,"Total Credits",null,{"$f":"SUM(M40:M45)","v":13},null,"Total Credits",null,{"$f":"SUM(Q40:Q45)","v":13}]
[null,"Total Credits All Semesters",null,{"$f":"D12+H12+D21+H21+D30+H30+D38+H38+D46+H46","v":132},null,"Laptop Requirements","Recommended",null,null,null,"Total Credits All Semesters",null,{"$f":"M12+Q12+M21+Q21+M30+Q30+M38+Q38+M46+Q46","v":132},null,"Laptop Requirements","Recommended"]
[null,"Total Credits Engineering ",null,60,null,"CPU","Intel Core i5 or i7",null,null,null,"Total Credits Engineering ",null,60,null,"CPU","Intel Core i5 or i7"]
[null,"Total Credits Math ",null,18,null,"Memory ","8 GB RAM (more is faster)",null,null,null,"Total Credits Math ",null,18,null,"Memory ","8 GB RAM (more is faster)"]
[null,"Total Credits Physics ",null,8,null,"Hard Drive","256 GB (more is better)",null,null,null,"Total Credits Physics ",null,8,null,"Hard Drive","256 GB (more is better)"]
[null,"Total Credits Chemistry ",null,4,null,"Operating System ","Windows 8 or higher",null,null,null,"Total Credits Chemistry ",null,4,null,"Operating System ","Windows 8 or higher"]
[null,"Total Credits General Education  ",null,42,null,"MS Office is free of charge provided through Milligan College ",null,null,null,null,"Total Credits General Education  ",null,42,null,"MS Office is free of charge provided through Milligan College"]
[]
[]
[]
[]
[]
[]
[null,"Note: "]
[null,"It should be noted that while the 4-Year Engineering Curriculum is fairly regimented the 5-Year Curriculum is very flexible. "]
[null,"The curriculum arrangements presented above are simply one version of many possible course arrangements. "]
[null,"Course arrangements will be tailored to meet individual student needs, goals, and objectives. "]